fUSD/lending_fUSD_20260416
["ID","MTS","AMOUNT","RATE_DAILY","PERIOD"]
[420591307,1776285014196,292.0,8.026e-05,3]
[420591308,1776285022814,-149.0,8.721e-05,2]
[420591309,1776285022944,-10000.01,8.721e-05,2]
[420591310,1776285025168,-10000.01,8.721e-05,2]
[420591311,1776285025278,-10000.01,8.721e-05,2]
[420591312,1776285025385,-10000.01,8.721e-05,2]
[420591313,1776285025503,-10000.01,8.721e-05,2]
[420591314,1776285025601,-10000.01,8.721e-05,2]
[420591379,1776285034079,-7661.9378,8.721e-05,2]
[420591380,1776285034089,-10000.0,8.777e-05,2]
[420591381,1776285034100,-151.0,8.819e-05,2]
[420591382,1776285034110,-282.65382962,8.819e-05,2]
[420591383,1776285034119,-5000.0,8.819e-05,2]
[420591384,1776285034129,-185.19564945,8.819e-05,2]
[420591385,1776285034139,-562.91,8.821e-05,2]
[420591386,1776285034148,-1110.41364375,8.821e-05,2]
[420591387,1776285034158,-9999.99,8.821e-05,2]
[420591388,1776285034167,-1622.53,8.821e-05,2]
[420591389,1776285034177,-153.75433783,8.822e-05,2]
[420591390,1776285034186,-150.99,8.822e-05,2]
[420591391,1776285034196,-9999.99,8.822e-05,2]
[420591392,1776285034205,-1796.69815124,8.822e-05,2]
[420591393,1776285034217,-1400.0,8.822e-05,2]
[420591394,1776285034238,-3037.28184876,8.822e-05,2]
[420591395,1776285034248,-1551.36,8.822e-05,2]
[420591396,1776285034257,-999.99,8.822e-05,2]
[420591397,1776285034267,-299.99,8.822e-05,2]
[420591398,1776285034277,-6684.05575381,8.822e-05,2]
[420591399,1776285034289,-407.0,8.822e-05,2]
[420591400,1776285034313,-17908.93424619,8.822e-05,2]
[420591401,1776285034323,-28034.31,8.822e-05,2]
[420591402,1776285034333,-9867.86,8.822e-05,2]
[420591403,1776285034342,-500.0,8.822e-05,2]
[420591404,1776285034354,-163.93178957,8.903e-05,2]
[420591405,1776285034365,-151.0,8.918e-05,2]
[420591406,1776285034374,-151.0,8.919e-05,2]
[420591407,1776285034384,-73953.19369587,8.929e-05,2]
[420591408,1776285034394,-1827.0,8.981e-05,2]
[420591409,1776285034404,-1826.5371,8.986e-05,2]
[420591410,1776285034413,-151.0,8.997e-05,2]
[420591411,1776285034422,-1367.0,8.999e-05,2]
[420591412,1776285034431,-1612.85,9.014e-05,2]
[420591413,1776285034440,-1649.0,9.017e-05,2]
[420591414,1776285034450,-358.0,9.02e-05,2]
[420591415,1776285034459,-1022.0,9.035e-05,2]
[420591416,1776285034468,-430.0,9.038e-05,2]
[420591417,1776285034477,-1913.0,9.053e-05,2]
[420591418,1776285034486,-272.0,9.056e-05,2]
[420591419,1776285034496,-500.0,9.063e-05,2]
[420591420,1776285034505,-1010.47563689,9.065e-05,2]
[420591421,1776285034514,-970.0,9.071e-05,2]
[420591422,1776285034523,-225.0,9.074e-05,2]
[420591423,1776285034532,-1916.0,9.088e-05,2]
[420591424,1776285034542,-351.0,9.092e-05,2]
[420591425,1776285034551,-562.91,9.095e-05,2]
[420591426,1776285034560,-15140.8,9.096e-05,2]
[420591427,1776285034570,-2858.82470047,9.104e-05,2]
[420591428,1776285034579,-456.0,9.106e-05,2]
[420591429,1776285034588,-423.0,9.11e-05,2]
[420591430,1776285034598,-500.0,9.11e-05,2]
[420591431,1776285034607,-908.0,9.124e-05,2]
[420591432,1776285034616,-1865.82191544,9.13e-05,2]
[420591433,1776285034625,-1713.0,9.142e-05,2]
[420591434,1776285034634,-382.84217792,9.149e-05,2]
[420591435,1776285034643,-384.0,9.16e-05,2]
[420591436,1776285034652,-158.0,9.178e-05,2]
[420591437,1776285034661,-642.0,9.196e-05,2]
[420591438,1776285034670,-957.0,9.214e-05,2]
[420591439,1776285034679,-152.43,9.247e-05,2]
[420591440,1776285034688,-2000.0,9.269e-05,2]
[420591441,1776285034698,-562.91,9.369e-05,2]
[420591442,1776285034707,-500.0,9.384e-05,2]
[420591443,1776285034716,-200.0,9.426e-05,2]
[420591444,1776285034726,-1600.0,9.549e-05,2]
[420591445,1776285034735,-420.0,9.592e-05,2]
[420591446,1776285034744,-420.0,9.592e-05,2]
[420591447,1776285034753,-1680.0,9.592e-05,2]
[420591448,1776285034763,-255.0,9.592e-05,2]
[420591449,1776285034772,-300.0,9.592e-05,2]
[420591450,1776285034781,-562.91,9.643e-05,2]
[420591451,1776285034790,-500.0,9.658e-05,2]
[420591452,1776285034799,-2934.73304244,9.701e-05,2]
[420591453,1776285034809,-193.0,9.701e-05,2]
[420591454,1776285034818,-5000.0,9.701e-05,2]
[420591455,1776285034827,-332.29859471,9.701e-05,2]
[420591456,1776285034836,-5000.0,9.701e-05,2]
[420591457,1776285034846,-250.0,9.701e-05,2]
[420591458,1776285034855,-547.4,9.908e-05,2]
[420591459,1776285034864,-562.95,9.917e-05,2]
[420591460,1776285034874,-500.0,9.932e-05,2]
[420591461,1776285034883,-150.0,9.984e-05,3]
[420591462,1776285034892,-292.0,9.984e-05,3]
[420591463,1776285034902,-1861.21412472,0.0001,2]
[420591464,1776285034911,-4522.08004184,0.0001,2]
[420591465,1776285034920,-3921.40776485,0.0001,2]
[420591466,1776285034929,-4353.37567172,0.0001,2]
[420591467,1776285034939,-4785.3435787,0.0001,2]
[420591468,1776285034948,-346.75373834,0.0001,2]
[420591469,1776285034957,-200.0,0.0001,2]
[420591470,1776285034967,-500.0,0.0001,2]
[420591471,1776285034976,-500.0,0.0001,2]
[420591472,1776285034986,-500.0,0.0001,2]
[420591473,1776285034995,-500.0,0.0001,2]
[420591474,1776285035004,-500.0,0.0001,2]
[420591475,1776285035013,-500.0,0.0001,2]
[420591476,1776285035022,-500.0,0.0001,2]
[420591477,1776285035031,-500.0,0.0001,2]
[420591478,1776285035041,-500.0,0.0001,2]
[420591479,1776285035050,-500.0,0.0001,2]
[420591480,1776285035060,-500.0,0.0001,2]
[420591481,1776285035069,-1386.78395259,0.0001,2]
[420591482,1776285035078,-500.0,0.0001,2]
[420591483,1776285035088,-17023.89007873,0.0001,2]
[420591484,1776285035097,-500.0,0.0001,2]
[420591485,1776285035107,-500.0,0.0001,2]
[420591486,1776285035116,-500.0,0.0001,2]
[420591487,1776285035126,-500.0,0.0001,2]
[420591488,1776285035136,-500.0,0.0001,2]
[420591489,1776285035145,-500.0,0.0001,2]
[420591490,1776285035155,-500.0,0.0001,2]
[420591491,1776285035164,-500.0,0.0001,2]
[420591492,1776285035174,-500.0,0.0001,2]
[420591493,1776285035183,-500.0,0.0001,2]
[420591494,1776285035192,-151.0,0.0001,2]
[420591495,1776285035201,-151.0,0.0001,2]
[420591496,1776285035211,-151.0,0.0001,2]
[420591497,1776285035220,-151.0,0.0001,2]
[420591498,1776285035230,-151.0,0.0001,2]
[420591499,1776285035240,-151.0,0.0001,2]
[420591500,1776285035249,-151.0,0.0001,2]
[420591501,1776285035259,-151.0,0.0001,2]
[420591502,1776285035268,-151.0,0.0001,2]
[420591503,1776285035278,-151.0,0.0001,2]
[420591504,1776285035288,-151.0,0.0001,2]
[420591505,1776285035297,-151.0,0.0001,2]
[420591506,1776285035306,-151.0,0.0001,2]
[420591507,1776285035316,-151.0,0.0001,2]
[420591508,1776285035325,-151.0,0.0001,2]
[420591509,1776285035335,-151.0,0.0001,2]
[420591510,1776285035344,-151.0,0.0001,2]
[420591511,1776285035353,-151.0,0.0001,2]
[420591512,1776285035363,-151.0,0.0001,2]
[420591513,1776285035372,-151.0,0.0001,2]
[420591514,1776285035382,-151.0,0.0001,2]
[420591515,1776285035391,-151.0,0.0001,2]
[420591516,1776285035401,-151.0,0.0001,2]
[420591517,1776285035410,-151.0,0.0001,2]
[420591518,1776285035420,-151.0,0.0001,2]
[420591519,1776285035429,-151.0,0.0001,2]
[420591520,1776285035439,-151.0,0.0001,2]
[420591521,1776285035448,-151.0,0.0001,2]
[420591522,1776285035457,-151.0,0.0001,2]
[420591523,1776285035467,-151.0,0.0001,2]
[420591524,1776285035476,-151.0,0.0001,2]
[420591525,1776285035485,-151.0,0.0001,2]
[420591526,1776285035494,-500.0,0.00010012,2]
[420591527,1776285035503,-160.03032103,0.00010012,2]
[420591528,1776285035513,-150.0,0.000101,2]
[420591529,1776285035522,-166.66,0.00010118,2]
[420591530,1776285035531,-500.0,0.00010206,2]
[420591531,1776285035540,-152.43,0.00010274,2]
[420591532,1776285035550,-2000.0,0.00010299,2]
[420591533,1776285035560,-294.302455,0.00010325,2]
[420591534,1776285035570,-200.0,0.00010548,2]
[420591535,1776285035581,-587.0,0.00010551,2]
[420591536,1776285035590,-2351.0,0.00010551,2]
[420591537,1776285035601,-433.0,0.00010551,2]
[420591538,1776285035611,-500.0,0.0001056,2]
[420591539,1776285035620,-1600.0,0.0001061,2]
[420591540,1776285035629,-500.0,0.00010672,2]
[420591541,1776285035638,-500.0,0.00010672,2]
[420591542,1776285035647,-500.0,0.00010699,2]
[420591543,1776285035656,-195.24250796,0.00010699,2]
[420591544,1776285035666,-444.59896374,0.00010699,2]
[420591545,1776285035675,-500.0,0.00010699,2]
[420591546,1776285035684,-500.0,0.00010699,2]
[420591547,1776285035694,-500.0,0.00010699,2]
[420591548,1776285035703,-500.0,0.00010699,2]
[420591549,1776285035712,-500.0,0.00010699,2]
[420591550,1776285035721,-500.0,0.00010699,2]
[420591551,1776285035731,-626.12340588,0.00010699,2]
[420591552,1776285035740,-500.0,0.00010699,2]
[420591553,1776285035749,-500.0,0.00010699,2]
[420591554,1776285035758,-500.0,0.00010699,2]
[420591555,1776285035768,-500.0,0.00010699,2]
[420591556,1776285035777,-500.0,0.00010699,2]
[420591557,1776285035786,-500.0,0.00010699,2]
[420591558,1776285035796,-500.0,0.00010699,2]
[420591559,1776285035804,-500.0,0.00010699,2]
[420591560,1776285035814,-500.0,0.00010699,2]
[420591561,1776285035823,-500.0,0.00010699,2]
[420591562,1776285035832,-500.0,0.00010699,2]
[420591563,1776285035842,-500.0,0.00010699,2]
[420591564,1776285035851,-500.0,0.00010699,2]
[420591565,1776285035860,-500.0,0.00010699,2]
[420591566,1776285035869,-500.0,0.00010699,2]
[420591567,1776285035879,-500.0,0.00010699,2]
[420591568,1776285035888,-500.0,0.00010699,2]
[420591569,1776285035897,-500.0,0.00010699,2]
[420591570,1776285035907,-500.0,0.00010699,2]
[420591571,1776285035916,-500.0,0.00010699,2]
[420591572,1776285035925,-500.0,0.00010699,2]
[420591573,1776285035934,-500.0,0.00010699,2]
[420591574,1776285035944,-500.0,0.00010699,2]
[420591575,1776285035954,-500.0,0.00010699,2]
[420591576,1776285035963,-57340.5835544,0.000107,2]
[420591577,1776285035973,-500.0,0.00010879,2]
[420591578,1776285035983,-500.0,0.00010879,2]
[420591579,1776285035993,-151.0,0.00010909,2]
[420591580,1776285036002,-500.0,0.00010959,2]
[420591581,1776285036012,-185.69,0.00010959,2]
[420591582,1776285036022,-150.0,0.00010959,2]
[420591583,1776285036032,-164.62,0.0001096,2]
[420591584,1776285036041,-581.0,0.00010989,5]
[420591585,1776285036051,-474.0,0.00011035,5]
[420591586,1776285036061,-31153.74164416,0.00011099,2]
[420591587,1776285036070,-6554.40570394,0.00011099,2]
[420591588,1776285036080,-6554.40570387,0.00011099,2]
[420591589,1776285036090,-6554.40570387,0.00011099,2]
[420591590,1776285036102,-151.0,0.00011099,2]
[420591591,1776285036112,-151.0,0.00011099,2]
[420591592,1776285036122,-151.0,0.00011099,2]
[420591593,1776285036132,-151.0,0.00011099,2]
[420591594,1776285036142,-444.57759475,0.00011114,2]
[420591595,1776285036153,-500.0,0.00011114,2]
[420591596,1776285036163,-228.28927147,0.00011114,2]
[420591597,1776285036172,-500.0,0.00011114,2]
[420591598,1776285036182,-461.53112626,0.00011114,2]
[420591599,1776285036192,-500.0,0.00011114,2]
[420591600,1776285036201,-214.39100445,0.00011114,2]
[420591601,1776285036211,-500.0,0.00011114,2]
[420591602,1776285036220,-500.0,0.00011114,2]
[420591603,1776285036230,-500.0,0.00011114,2]
[420591604,1776285036240,-500.0,0.00011114,2]
[420591605,1776285036250,-500.0,0.00011114,2]
[420591606,1776285036259,-500.0,0.00011114,2]
[420591607,1776285036269,-500.0,0.00011114,2]
[420591608,1776285036278,-500.0,0.00011114,2]
[420591609,1776285036288,-6554.40570387,0.00011115,2]
[420591610,1776285036298,-528.782822,0.00011126,2]
[420591611,1776285036307,-1971.933716,0.00011147,2]
[420591612,1776285036318,-152.43,0.00011301,2]
[420591613,1776285036327,-2000.0,0.00011329,2]
[420591614,1776285036337,-174.61919141,0.00011353,2]
[420591615,1776285036348,-721.12765535,0.00011353,2]
[420591616,1776285036357,-500.0,0.00011353,2]
[420591617,1776285036367,-500.0,0.00011353,2]
[420591618,1776285036376,-9552.16786547,0.00011353,2]
[420591619,1776285036386,-500.0,0.00011353,2]
[420591620,1776285036395,-500.0,0.00011353,2]
[420591621,1776285036404,-500.0,0.00011353,2]
[420591622,1776285036414,-500.0,0.00011353,2]
[420591623,1776285036424,-200.0,0.00011353,2]
[420591624,1776285036433,-500.0,0.00011353,2]
[420591625,1776285036443,-500.0,0.00011353,2]
[420591626,1776285036452,-500.0,0.00011353,2]
[420591627,1776285036461,-500.0,0.00011353,2]
[420591628,1776285036471,-500.0,0.00011353,2]
[420591629,1776285036480,-693.3919763,0.00011353,2]
[420591630,1776285036489,-578.20924308,0.00011353,2]
[420591631,1776285036499,-200.0,0.00011353,2]
[420591632,1776285036508,-151.0,0.00011353,2]
[420591633,1776285036517,-209.40437685,0.00011353,2]
[420591634,1776285036527,-2002.51008952,0.00011353,2]
[420591635,1776285036536,-220.98512515,0.00011353,2]
[420591636,1776285036546,-500.0,0.00011353,2]
[420591637,1776285036555,-151.0,0.00011353,2]
[420591638,1776285036565,-235.75327194,0.00011353,2]
[420591639,1776285036574,-244.476143,0.00011353,2]
[420591640,1776285036583,-253.52176029,0.00011353,2]
[420591641,1776285036593,-262.90206542,0.00011353,2]
[420591642,1776285036603,-272.62944185,0.00011353,2]
[420591643,1776285036612,-282.71673119,0.00011353,2]
[420591644,1776285036622,-293.17725025,0.00011353,2]
[420591645,1776285036631,-304.02480851,0.00011353,2]
[420591646,1776285036640,-278.45049135,0.00011353,2]
[420591647,1776285036649,-428.48088418,0.00011353,2]
[420591648,1776285036658,-279.9045709,0.00011353,2]
[420591649,1776285036668,-743.50770149,0.00011353,2]
[420591650,1776285036677,-31153.74164413,0.00011375,2]
[420591651,1776285036687,-151.0,0.00011379,2]
[420591652,1776285036696,-151.0,0.00011379,2]
[420591653,1776285036705,-191.488,0.000114,2]
[420591654,1776285036714,-3375.22077536,0.00011408,2]
[420591655,1776285036723,-500.0,0.00011408,2]
[420591656,1776285036732,-151.0,0.00011408,2]
[420591657,1776285036740,-500.0,0.00011463,2]
[420591658,1776285036749,-151.0,0.00011463,2]
[420591659,1776285036759,-3981.01,0.00011507,2]
[420591660,1776285036768,-1257.8,0.00011507,2]
[420591661,1776285036777,-500.0,0.00011518,2]
[420591662,1776285036786,-151.0,0.00011518,2]
[420591663,1776285036795,-500.0,0.00011573,2]
[420591664,1776285036804,-151.0,0.00011573,2]
[420591665,1776285036813,-823.0,0.00011606,2]
[420591666,1776285036823,-3292.0,0.00011606,2]
[420591667,1776285036831,-736.0,0.00011606,2]
[420591668,1776285036840,-500.0,0.00011628,2]
[420591669,1776285036851,-151.0,0.00011628,2]
[420591670,1776285036860,-1600.0,0.00011671,2]
[420591671,1776285036869,-151.0,0.00011671,2]
[420591672,1776285036878,-151.0,0.00011671,2]
[420591673,1776285036887,-500.0,0.00011683,2]
[420591674,1776285036896,-151.0,0.00011683,2]
[420591675,1776285036905,-500.0,0.00011738,2]
[420591676,1776285036914,-151.0,0.00011738,2]
[420591677,1776285036923,-500.0,0.00011793,2]
[420591678,1776285036932,-151.0,0.00011793,2]
[420591679,1776285036942,-500.0,0.00011848,2]
[420591680,1776285036951,-151.0,0.00011848,2]
[420591681,1776285036961,-181.08010149,0.00011901,2]
[420591682,1776285036970,-200.0,0.00011901,2]
[420591683,1776285036979,-719.04747942,0.00011901,2]
[420591684,1776285036989,-156.587,0.00011901,2]
[420591685,1776285036998,-290.26104003,0.00011901,2]
[420591686,1776285037007,-771.01748645,0.00011901,2]
[420591687,1776285037017,-573.0,0.00011903,5]
[420591688,1776285037027,-500.0,0.00011903,2]
[420591689,1776285037037,-151.0,0.00011903,2]
[420591690,1776285037047,-6554.40570387,0.00011912,2]
[420591691,1776285037056,-31153.74164413,0.0001194,2]
[420591692,1776285037065,-150.0,0.00011943,3]
[420591693,1776285037074,-292.0,0.00011943,3]
[420591694,1776285037084,-6830.29115,0.0001198,2]
[420591695,1776285037093,-157.75396648,0.00012156,2]
[420591696,1776285037104,-150.0,0.00012156,2]
[420591697,1776285037114,-3528.682,0.00012192,2]
[420591698,1776285037130,-347.735,0.00012192,2]
[420591699,1776285037140,-152.43,0.00012329,2]
[420591700,1776285037149,-2000.0,0.00012359,2]
[420591701,1776285037159,-187.78006525,0.00012449,2]
[420591702,1776285037169,-200.0,0.00012449,2]
[420591703,1776285037179,-162.380719,0.00012449,2]
[420591704,1776285037189,-301.00069851,0.00012449,2]
[420591705,1776285037199,-6027.0,0.00012452,2]
[420591706,1776285037209,-3527.0,0.00012452,2]
[420591707,1776285037219,-31153.74164413,0.00012506,2]
[420591708,1776285037230,-1265.0,0.00012571,2]
[420591709,1776285037240,-926.0,0.00012571,2]
[420591710,1776285037250,-1218.0,0.00012571,2]
[420591711,1776285037260,-500.0,0.00012664,2]
[420591712,1776285037271,-244.4511,0.000127,2]
[420591713,1776285037281,-6554.40570387,0.0001271,2]
[420591714,1776285037291,-1600.0,0.00012732,2]
[420591715,1776285037303,-1252.0,0.00012766,2]
[420591716,1776285037312,-1152.0,0.00012767,2]
[420591717,1776285037323,-4609.0,0.00012767,2]
[420591718,1776285037333,-151.0,0.00012824,2]
[420591719,1776285037343,-151.0,0.00012824,2]
[420591720,1776285037355,-173.756328,0.00012824,2]
[420591721,1776285037365,-151.0,0.00012824,2]
[420591722,1776285037375,-1000.0,0.00012888,2]
[420591723,1776285037386,-150.0,0.00012947,2]
[420591724,1776285037396,-160.0,0.00012957,2]
[420591725,1776285037406,-184.59,0.00012986,2]
[420591726,1776285037416,-194.72792766,0.00012997,2]
[420591727,1776285037427,-200.0,0.00012997,2]
[420591728,1776285037437,-168.3888056,0.00012997,2]
[420591729,1776285037446,-312.13772435,0.00012997,2]
[420591730,1776285037457,-250.0,0.00013,2]
[420591731,1776285037467,-31153.74164413,0.00013072,2]
[420591732,1776285037476,-300.17,0.00013122,2]
[420591733,1776285037486,-500.0,0.00013212,2]
[420591734,1776285037497,-1000.0,0.00013405,2]
[420591735,1776285037507,-1000.0,0.0001341,2]
[420591736,1776285037522,-3240.0,0.00013425,2]
[420591737,1776285037533,-500.0,0.00013425,2]
[420591738,1776285037543,-500.0,0.00013425,2]
[420591739,1776285037553,-500.0,0.00013425,2]
[420591740,1776285037563,-500.0,0.00013425,2]
[420591741,1776285037573,-500.0,0.00013425,2]
[420591742,1776285037582,-506.2388693,0.00013425,2]
[420591743,1776285037593,-500.0,0.00013425,2]
[420591744,1776285037604,-500.0,0.00013425,2]
[420591745,1776285037614,-500.0,0.00013425,2]
[420591746,1776285037624,-500.0,0.00013425,2]
[420591747,1776285037634,-500.0,0.00013425,2]
[420591748,1776285037644,-500.0,0.00013425,2]
[420591749,1776285037654,-243.76438225,0.00013425,2]
[420591750,1776285037664,-500.0,0.00013425,2]
[420591751,1776285037674,-500.0,0.00013425,2]
[420591752,1776285037684,-462.56168231,0.00013425,2]
[420591753,1776285037694,-804.205199,0.00013425,2]
[420591754,1776285037704,-1042.942013,0.00013425,2]
[420591755,1776285037713,-1042.942013,0.00013425,2]
[420591756,1776285037723,-1042.942013,0.00013425,2]
[420591757,1776285037732,-1042.942013,0.00013425,2]
[420591758,1776285037742,-804.205199,0.00013425,2]
[420591759,1776285037751,-804.205199,0.00013425,2]
[420591760,1776285037761,-804.205199,0.00013425,2]
[420591761,1776285037771,-500.0,0.00013425,2]
[420591762,1776285037781,-500.0,0.00013425,2]
[420591763,1776285037791,-500.0,0.00013425,2]
[420591764,1776285037801,-500.0,0.00013425,2]
[420591765,1776285037810,-500.0,0.00013425,2]
[420591766,1776285037821,-500.0,0.00013425,2]
[420591767,1776285037830,-217.32446874,0.00013425,2]
[420591768,1776285037841,-233.00628845,0.00013425,2]
[420591769,1776285037852,-500.0,0.00013425,2]
[420591770,1776285037862,-500.0,0.00013425,2]
[420591771,1776285037873,-500.0,0.00013425,2]
[420591772,1776285037883,-500.0,0.00013425,2]
[420591773,1776285037893,-500.0,0.00013425,2]
[420591774,1776285037903,-500.0,0.00013425,2]
[420591775,1776285037913,-349.45504221,0.00013425,2]
[420591776,1776285037923,-500.0,0.00013425,2]
[420591777,1776285037939,-535.0,0.00013425,2]
[420591778,1776285037950,-500.0,0.00013425,2]
[420591779,1776285037961,-535.0,0.00013425,2]
[420591780,1776285037972,-500.0,0.00013425,2]
[420591781,1776285037982,-535.0,0.00013425,2]
[420591782,1776285037993,-500.0,0.00013425,2]
[420591783,1776285038005,-535.0,0.00013425,2]
[420591784,1776285038016,-500.0,0.00013425,2]
[420591785,1776285038027,-535.0,0.00013425,2]
[420591787,1776285038038,-500.0,0.00013425,2]
[420591788,1776285038048,-535.0,0.00013425,2]
[420591789,1776285038059,-535.0,0.00013425,2]
[420591804,1776285038712,-535.0,0.00013425,2]
[420591805,1776285038722,-535.0,0.00013425,2]
[420591806,1776285038732,-535.0,0.00013425,2]
[420591807,1776285038741,-535.0,0.00013425,2]
[420591808,1776285038751,-535.0,0.00013425,2]
[420591809,1776285038761,-535.0,0.00013425,2]
[420591810,1776285038771,-535.0,0.00013425,2]
[420591811,1776285038781,-535.0,0.00013425,2]
[420591812,1776285038791,-535.0,0.00013425,2]
[420591813,1776285038801,-535.0,0.00013425,2]
[420591814,1776285038811,-535.0,0.00013425,2]
[420591816,1776285038820,-535.0,0.00013425,2]
[420591818,1776285038830,-535.0,0.00013425,2]
[420591819,1776285038840,-535.0,0.00013425,2]
[420591821,1776285038850,-5732.58504034,0.00013507,2]
[420591824,1776285038869,-821.82066353,0.00013507,2]
[420591826,1776285038878,-201.93286099,0.00013545,2]
[420591828,1776285038888,-200.0,0.00013545,2]
[420591830,1776285038897,-174.61919141,0.00013545,2]
[420591832,1776285038906,-323.68682015,0.00013545,2]
[420591834,1776285038916,-10000.0,0.00013598,2]
[420591836,1776285038925,-2000.0,0.000136,2]
[420591838,1776285038935,-31153.74164413,0.00013637,2]
[420591840,1776285038944,-500.0,0.00013698,2]
[420591842,1776285038953,-500.0,0.00013698,2]
[420591844,1776285038962,-500.0,0.00013698,2]
[420591847,1776285038972,-500.0,0.00013698,2]
[420591849,1776285038982,-500.0,0.00013698,2]
[420591851,1776285038991,-500.0,0.00013698,2]
[420591853,1776285039000,-500.0,0.00013698,2]
[420591855,1776285039009,-500.0,0.00013698,2]
[420591857,1776285039019,-192.64273727,0.00013698,2]
[420591859,1776285039028,-500.0,0.00013698,2]
[420591861,1776285039038,-500.0,0.00013698,2]
[420591863,1776285039047,-500.0,0.00013698,2]
[420591865,1776285039056,-500.0,0.00013698,2]
[420591867,1776285039066,-500.0,0.00013698,2]
[420591869,1776285039075,-500.0,0.00013698,2]
[420591871,1776285039084,-500.0,0.00013698,2]
[420591873,1776285039094,-500.0,0.00013698,2]
[420591875,1776285039104,-500.0,0.00013698,2]
[420591877,1776285039113,-500.0,0.00013698,2]
[420591879,1776285039123,-500.0,0.00013698,2]
[420591881,1776285039133,-500.0,0.00013698,2]
[420591883,1776285039142,-500.0,0.00013698,2]
[420591885,1776285039152,-500.0,0.00013698,2]
[420591887,1776285039162,-500.0,0.00013698,2]
[420591889,1776285039171,-500.0,0.00013698,2]
[420591891,1776285039181,-328.97243185,0.00013698,2]
[420591893,1776285039191,-500.0,0.00013698,2]
[420591895,1776285039201,-500.0,0.00013698,2]
[420591897,1776285039211,-500.0,0.00013698,2]
[420591899,1776285039222,-500.0,0.00013698,2]
[420591901,1776285039231,-500.0,0.00013698,2]
[420591903,1776285039241,-500.0,0.00013698,2]
[420591905,1776285039250,-500.0,0.00013698,2]
[420591907,1776285039259,-500.0,0.00013698,2]
[420591909,1776285039269,-500.0,0.00013698,2]
[420591911,1776285039278,-500.0,0.00013698,2]
[420591913,1776285039288,-500.0,0.00013698,2]
[420591915,1776285039297,-500.0,0.00013698,2]
[420591917,1776285039306,-500.0,0.00013698,2]
[420591919,1776285039316,-470.62484337,0.00013698,2]
[420591922,1776285039332,-29.37515663,0.00013698,2]
[420591924,1776285039341,-500.0,0.00013698,2]
[420591926,1776285039351,-500.0,0.00013698,2]
[420591928,1776285039361,-500.0,0.00013698,2]
[420591930,1776285039370,-500.0,0.00013698,2]
[420591932,1776285039379,-500.0,0.00013698,2]
[420591934,1776285039389,-500.0,0.00013698,2]
[420591936,1776285039398,-500.0,0.00013698,2]
[420591938,1776285039408,-500.0,0.00013698,2]
[420591940,1776285039417,-500.0,0.00013698,2]
[420591942,1776285039427,-500.0,0.00013698,2]
[420591944,1776285039436,-500.0,0.00013698,2]
[420591946,1776285039446,-500.0,0.00013698,2]
[420591948,1776285039455,-500.0,0.00013698,2]
[420591950,1776285039465,-500.0,0.00013698,2]
[420591952,1776285039474,-500.0,0.00013698,2]
[420591954,1776285039484,-500.0,0.00013698,2]
[420591956,1776285039493,-500.0,0.00013698,2]
[420591958,1776285039503,-500.0,0.00013698,2]